[Event "EYCC Open-U10 2019"]
[Site "Bratislava"]
[Date "2019.08.09"]
[Round "8.43"]
[White "Haubold, Christian Lucas"]
[Black "Morozov, Saveliy"]
[Result "1/2-1/2"]
[ECO "B34"]
[WhiteElo "1429"]
[BlackElo "1278"]
[Annotator "NA"]
[PlyCount "71"]
[EventDate "2019.08.02"]
[EventType "swiss"]
[EventCountry "SVK"]
[SourceTitle "playchess.com"]
[Source "ChessBase"]
[SourceQuality "1"]
[TimeControl "40/5400+30:1800+30"]

1. e4 c5 2. Nf3 Nc6 3. d4 cxd4 4. Nxd4 g6 5. Nxc6 bxc6 6. Qd4 Nf6 7. e5 Nd5 8. Nc3 Qb6 9. Qxb6 Nxb6 10. Bd3 Bg7 11. Bf4 Bb7 12. O-O O-O 13. Rfe1 Rad8 14. Rab1 Rfe8 15. a3 Nd5 16. Nxd5 cxd5 17. c3 e6 18. Bg5 Rc8 19. f4 Bf8 20. Bh4 d6 21. Bf2 a6 22. Bd4 dxe5 23. fxe5 Bc5 24. Rec1 Kg7 25. Rf1 Rf8 26. Bxc5 Rxc5 27. Rf6 a5 28. Kf2 Bc6 29. Ke3 Bb5 30. Bxb5 Rxb5 31. g4 Rc8 32. Kd3 Rc4 33. Rbf1 Rxb2 34. Rxf7+ Kh6 35. Re7 Rxg4 36. Rxe6 1/2-1/2

[Event "EYCC Open-U10 2019"]
[Site "Bratislava"]
[Date "2019.08.09"]
[Round "8.44"]
[White "Bukvaj, Martin"]
[Black "Farias, David Nuno M E"]
[Result "0-1"]
[ECO "C47"]
[WhiteElo "1220"]
[BlackElo "1372"]
[Annotator "NA"]
[PlyCount "58"]
[EventDate "2019.08.02"]
[EventType "swiss"]
[EventCountry "SVK"]
[SourceTitle "playchess.com"]
[Source "ChessBase"]
[SourceQuality "1"]
[TimeControl "40/5400+30:1800+30"]

1. e4 {[%emt 0:00:00]} e5 {[%emt 0:00:00]} 2. Nf3 {[%emt 0:00:00]} Nc6 {[%emt 0:00:00]} 3. Nc3 {[%emt 0:00:00]} Nf6 {[%emt 0:00:00]} 4. d4 {[%emt 0:00:00]} exd4 {[%emt 0:00:05]} 5. Nxd4 {[%emt 0:00:00]} Bb4 {[%emt 0:00:15]} 6. Nxc6 {[%emt 0:00:44]} bxc6 {[%emt 0:00:06]} 7. Bd3 {[%emt 0:00:13]} d5 {[%emt 0:02:52]} 8. exd5 {[%emt 0:01:08]} cxd5 {[%emt 0:00:07]} 9. O-O {[%emt 0:00:12]} O-O {[%emt 0:00:25]} 10. Bg5 {[%emt 0:00:41]} c6 {[%emt 0:00:39]} 11. h3 {[%emt 0:01:09]} h6 {[%emt 0:02:39]} 12. Bh4 {[%emt 0:00:07]} Be6 {[%emt 0:26:20]} 13. a3 {[%emt 0:02:40]} Be7 {[%emt 0:02:04]} 14. Re1 {[%emt 0:02:36]} Rb8 {[%emt 0:06:07]} 15. Rb1 {[%emt 0:00:52]} Nd7 {[%emt 0:06:27]} 16. Bg3 {[%emt 0:01:21]} Ra8 {[%emt 0:02:40]} 17. Ne2 {[%emt 0:00:43]} Nc5 {[%emt 0:00:11]} 18. Nd4 {[%emt 0:00:24]} Qd7 {[%emt 0:05:39]} 19. Qe2 {[%emt 0:02:25]} Bf6 {[%emt 0:07:24]} 20. Nxe6 {[%emt 0:01:22]} Nxe6 {[%emt 0:00:42]} 21. c3 {[%emt 0:02:01]} Nc5 {[%emt 0:01:09]} 22. Qf3 {[%emt 0:02:56]} Nxd3 {[%emt 0:01:09]} 23. Qxd3 {[%emt 0:00:09]} Rfe8 {[%emt 0:02:42]} 24. Rxe8+ {[%emt 0:02:30]} Rxe8 {[%emt 0:00:44]} 25. Rd1 Qb7 {[%emt 0:09:11]} 26. Qc2 {[%emt 0:05:00]} Qb5 {[%emt 0:01:12]} 27. Rd2 {[%emt 0:04:04]} Re1+ {[%emt 0:00:09]} 28. Kh2 {[%emt 0:00:12]} Qf1 {[%emt 0:00:19]} 29. Bd6 {[%emt 0:00:26]} Bh4 {[%emt 0:00:32]} 0-1

[Event "EYCC Open-U10 2019"]
[Site "Bratislava"]
[Date "2019.08.09"]
[Round "8.45"]
[White "Kote, Aleks"]
[Black "Pehar, Borna"]
[Result "1-0"]
[ECO "B33"]
[WhiteElo "1257"]
[BlackElo "1677"]
[Annotator "NA"]
[PlyCount "39"]
[EventDate "2019.08.02"]
[EventType "swiss"]
[EventCountry "SVK"]
[SourceTitle "playchess.com"]
[Source "ChessBase"]
[SourceQuality "1"]
[TimeControl "40/5400+30:1800+30"]

1. e4 {[%emt 0:00:00]} c5 {[%emt 0:00:29]} 2. Nf3 {[%emt 0:00:30]} Nc6 {[%emt 0:00:09]} 3. d4 {[%emt 0:00:33]} cxd4 {[%emt 0:00:06]} 4. Nxd4 {[%emt 0:00:34]} Nf6 {[%emt 0:00:37]} 5. Nc3 {[%emt 0:00:28]} e5 {[%emt 0:00:09]} 6. Ndb5 {[%emt 0:00:29]} d6 {[%emt 0:00:25]} 7. Bg5 {[%emt 0:00:46]} a6 {[%emt 0:02:10]} 8. Na3 {[%emt 0:00:15]} b5 {[%emt 0:00:04]} 9. Nd5 {[%emt 0:00:08]} Be7 {[%emt 0:00:53]} 10. Bxf6 {[%emt 0:00:21]} Bxf6 {[%emt 0:00:32]} 11. c3 {[%emt 0:00:14]} Bg5 {[%emt 0:02:09]} 12. Nc2 {[%emt 0:00:59]} O-O {[%emt 0:00:41]} 13. a4 {[%emt 0:00:46]} bxa4 {[%emt 0:03:34]} 14. Rxa4 {[%emt 0:00:22]} f5 {[%emt 0:04:36]} 15. exf5 {[%emt 0:04:12]} Rxf5 {[%emt 0:05:14]} 16. Bc4 {[%emt 0:01:09]} Kh8 {[%emt 0:01:16]} 17. O-O {[%emt 0:02:44]} Bf4 {[%emt 0:15:53]} 18. Bd3 {[%emt 0:01:43]} Bxh2+ {[%emt 0:03:55]} 19. Kxh2 {[%emt 0:01:21]} Qh4+ {[%emt 0:01:08]} 20. Rxh4 {[%emt 0:00:18]} 1-0

[Event "EYCC Open-U10 2019"]
[Site "Bratislava"]
[Date "2019.08.09"]
[Round "8.46"]
[White "Khoo-Thwe, Louis"]
[Black "Stary, Vojtech"]
[Result "1-0"]
[ECO "C54"]
[WhiteElo "1746"]
[BlackElo "1334"]
[Annotator "NA"]
[PlyCount "71"]
[EventDate "2019.08.02"]
[EventType "swiss"]
[EventCountry "SVK"]
[SourceTitle "playchess.com"]
[Source "ChessBase"]
[SourceQuality "1"]
[TimeControl "40/5400+30:1800+30"]

1. e4 {[%emt 0:00:00]} e5 {[%emt 0:00:00]} 2. Nf3 {[%emt 0:00:00]} Nc6 {[%emt 0:00:00]} 3. Bc4 {[%emt 0:00:00]} Bc5 {[%emt 0:00:00]} 4. c3 {[%emt 0:00:00]} Nf6 {[%emt 0:00:00]} 5. d3 {[%emt 0:00:01]} d6 {[%emt 0:00:23]} 6. O-O {[%emt 0:00:11]} O-O {[%emt 0:00:28]} 7. h3 {[%emt 0:00:14]} h6 {[%emt 0:00:44]} 8. Nbd2 {[%emt 0:00:18]} Be6 {[%emt 0:00:37]} 9. Bxe6 {[%emt 0:00:39]} fxe6 {[%emt 0:00:15]} 10. b4 {[%emt 0:00:05]} Bb6 {[%emt 0:01:11]} 11. Nc4 {[%emt 0:00:05]} Qd7 {[%emt 0:09:11]} 12. a4 {[%emt 0:00:55]} a6 {[%emt 0:02:38]} 13. Nxb6 {[%emt 0:00:06]} cxb6 {[%emt 0:00:10]} 14. Re1 {[%emt 0:01:46]} Kh8 {[%emt 0:01:49]} 15. Be3 {[%emt 0:05:33]} Qc7 {[%emt 0:03:29]} 16. b5 {[%emt 0:02:02]} axb5 {[%emt 0:04:33]} 17. axb5 {[%emt 0:00:08]} Na5 {[%emt 0:00:36]} 18. Bd2 {[%emt 0:02:38]} Nd7 {[%emt 0:07:17]} 19. Nh4 {[%emt 0:01:05]} Kh7 {[%emt 0:02:13]} 20. Qg4 {[%emt 0:00:09]} Rf6 {[%emt 0:01:50]} 21. Qh5 {[%emt 0:03:29]} Nc5 {[%emt 0:06:45]} 22. Bg5 {[%emt 0:00:55]} Rff8 {[%emt 0:01:36]} 23. Qg6+ {[%emt 0:00:06]} Kh8 {[%emt 0:01:46]} 24. Bxh6 {[%emt 0:03:36]} gxh6 {[%emt 0:01:11]} 25. Qxh6+ {[%emt 0:00:06]} Kg8 {[%emt 0:00:16]} 26. Re3 {[%emt 0:00:29]} Rf7 {[%emt 0:02:22]} 27. Rg3+ {[%emt 0:00:18]} Rg7 {[%emt 0:00:49]} 28. Ng6 {[%emt 0:00:04]} d5 {[%emt 0:13:32]} 29. Rf3 {[%emt 0:02:26]} Rxg6 {[%emt 0:00:59]} 30. Qxg6+ {[%emt 0:00:06]} Qg7 {[%emt 0:00:12]} 31. Qh5 {[%emt 0:00:04]} dxe4 {[%emt 0:03:59]} 32. Rg3 {[%emt 0:00:16]} Qxg3 {[%emt 0:00:11]} 33. fxg3 {[%emt 0:00:05]} exd3 {[%emt 0:00:12]} 34. Rf1 {[%emt 0:00:27]} e4 {[%emt 0:02:11]} 35. Qg6+ {[%emt 0:00:13]} Kh8 {[%emt 0:00:15]} 36. Rf7 1-0

[Event "EYCC Open-U10 2019"]
[Site "Bratislava"]
[Date "2019.08.09"]
[Round "8.47"]
[White "Gorej, Vojtech"]
[Black "Foldes, Marton Gabor"]
[Result "0-1"]
[ECO "B47"]
[WhiteElo "1256"]
[BlackElo "1803"]
[Annotator "NA"]
[PlyCount "128"]
[EventDate "2019.08.02"]
[EventType "swiss"]
[EventCountry "SVK"]
[SourceTitle "playchess.com"]
[Source "ChessBase"]
[SourceQuality "1"]
[TimeControl "40/5400+30:1800+30"]

1. e4 {[%emt 0:00:00]} c5 {[%emt 0:00:00]} 2. Nf3 {[%emt 0:00:21]} e6 {[%emt 0:00:02]} 3. d4 {[%emt 0:00:24]} cxd4 {[%emt 0:00:11]} 4. Nxd4 {[%emt 0:00:30]} Nc6 {[%emt 0:00:19]} 5. Nc3 {[%emt 0:00:32]} Qc7 {[%emt 0:00:17]} 6. Ndb5 {[%emt 0:06:37]} Qb8 {[%emt 0:00:21]} 7. g3 {[%emt 0:01:07]} a6 {[%emt 0:01:39]} 8. Nd4 {[%emt 0:01:37]} Nf6 {[%emt 0:04:10]} 9. Bg5 {[%emt 0:01:24]} Nxe4 {[%emt 0:10:56]} 10. Nxc6 {[%emt 0:04:44]} Nxc3 {[%emt 0:00:37]} 11. Nxb8 {[%emt 0:00:47]} Nxd1 {[%emt 0:00:14]} 12. Nxd7 {[%emt 0:01:27]} Bxd7 {[%emt 0:06:23]} 13. Rxd1 {[%emt 0:02:28]} Bc6 {[%emt 0:00:32]} 14. Rg1 {[%emt 0:00:22]} h6 {[%emt 0:02:08]} 15. Be3 {[%emt 0:00:59]} Be7 {[%emt 0:02:44]} 16. Bg2 {[%emt 0:03:52]} Rc8 {[%emt 0:02:49]} 17. c3 {[%emt 0:01:01]} Bf6 {[%emt 0:03:29]} 18. Bxc6+ {[%emt 0:01:15]} Rxc6 {[%emt 0:00:13]} 19. Ke2 {[%emt 0:00:52]} Ke7 {[%emt 0:02:54]} 20. Rd3 {[%emt 0:01:25]} Rhc8 {[%emt 0:14:08]} 21. Rgd1 {[%emt 0:02:38]} R8c7 {[%emt 0:04:20]} 22. Rd8 {[%emt 0:00:51]} e5 {[%emt 0:01:11]} 23. f3 {[%emt 0:03:26]} Ke6 {[%emt 0:01:02]} 24. R8d5 {[%emt 0:01:01]} b5 {[%emt 0:16:58]} 25. f4 {[%emt 0:04:18]} Rb7 {[%emt 0:02:15]} 26. a3 {[%emt 0:00:59]} a5 {[%emt 0:02:57]} 27. fxe5 {[%emt 0:01:12]} Bxe5 {[%emt 0:00:39]} 28. Rc5 {[%emt 0:00:47]} Rxc5 {[%emt 0:01:50]} 29. Bxc5 {[%emt 0:00:19]} h5 {[%emt 0:04:28]} 30. Bd4 {[%emt 0:00:36]} g5 {[%emt 0:03:20]} 31. Bxe5 {[%emt 0:01:56]} Kxe5 {[%emt 0:00:01]} 32. Ke3 {[%emt 0:00:37]} Rc7 {[%emt 0:06:03]} 33. Rd8 {[%emt 0:00:45]} Kf6 {[%emt 0:00:31]} 34. Rd5 {[%emt 0:01:26]} Rb7 {[%emt 0:00:10]} 35. h4 {[%emt 0:01:07]} gxh4 {[%emt 0:00:07]} 36. gxh4 {[%emt 0:00:58]} Kg6 {[%emt 0:00:16]} 37. Rg5+ {[%emt 0:01:10]} Kh6 {[%emt 0:01:27]} 38. Kd4 {[%emt 0:00:50]} f6 {[%emt 0:00:36]} 39. Rd5 {[%emt 0:00:37]} Kg6 {[%emt 0:04:22]} 40. Kc5 {[%emt 0:00:00]} b4 {[%emt 0:00:00]} 41. axb4 {[%emt 0:02:47]} axb4 {[%emt 0:01:27]} 42. cxb4 {[%emt 0:00:11]} f5 {[%emt 0:01:33]} 43. b5 {[%emt 0:00:08]} f4 {[%emt 0:00:25]} 44. b6 {[%emt 0:00:19]} f3 {[%emt 0:00:27]} 45. Kc6 {[%emt 0:00:30]} Rb8 {[%emt 0:00:42]} 46. Kc7 {[%emt 0:01:20]} f2 {[%emt 0:00:57]} 47. Rd1 {[%emt 0:00:35]} Re8 {[%emt 0:00:12]} 48. Rf1 {[%emt 0:00:33]} Re2 {[%emt 0:00:43]} 49. b7 {[%emt 0:00:14]} Rc2+ {[%emt 0:00:14]} 50. Kb8 {[%emt 0:00:37]} Rxb2 {[%emt 0:00:13]} 51. Ka8 {[%emt 0:00:13]} Ra2+ {[%emt 0:00:13]} 52. Kb8 {[%emt 0:00:08]} Kf5 {[%emt 0:02:24]} 53. Rc1 {[%emt 0:00:13]} Rc2 {[%emt 0:04:05]} 54. Rb1 {[%emt 0:00:31]} Rb2 {[%emt 0:01:41]} 55. Rd1 {[%emt 0:01:02]} Kg4 {[%emt 0:06:46]} 56. Kc7 {[%emt 0:00:21]} Kxh4 {[%emt 0:04:28]} 57. Rd2 {[%emt 0:02:25]} Rxb7+ {[%emt 0:00:37]} 58. Kxb7 {[%emt 0:00:17]} f1=Q {[%emt 0:00:08]} 59. Rd4+ {[%emt 0:00:07]} Kg5 {[%emt 0:00:45]} 60. Rd5+ {[%emt 0:00:23]} Kf6 {[%emt 0:00:25]} 61. Rd8 {[%emt 0:00:19]} Qb5+ {[%emt 0:00:37]} 62. Kc8 {[%emt 0:01:11]} Qc6+ {[%emt 0:00:09]} 63. Kb8 {[%emt 0:00:08]} Qb6+ {[%emt 0:00:06]} 64. Kc8 {[%emt 0:00:05]} Qxd8+ {[%emt 0:00:06]} 0-1

[Event "EYCC Open-U10 2019"]
[Site "Bratislava"]
[Date "2019.08.09"]
[Round "8.48"]
[White "Torosyan, Bagrat"]
[Black "Sarafis, Rafail"]
[Result "1-0"]
[ECO "A45"]
[WhiteElo "1586"]
[BlackElo "1094"]
[Annotator "NA"]
[PlyCount "91"]
[EventDate "2019.08.02"]
[EventType "swiss"]
[EventCountry "SVK"]
[SourceTitle "playchess.com"]
[Source "ChessBase"]
[SourceQuality "1"]
[TimeControl "40/5400+30:1800+30"]

1. d4 {[%emt 0:00:00]} Nf6 {[%emt 0:00:00]} 2. Bf4 {[%emt 0:00:00]} e6 {[%emt 0:00:00]} 3. e3 {[%emt 0:00:00]} c5 {[%emt 0:00:00]} 4. c3 {[%emt 0:00:00]} Nc6 {[%emt 0:00:33]} 5. Nf3 {[%emt 0:00:08]} d5 {[%emt 0:00:07]} 6. Nbd2 {[%emt 0:00:08]} cxd4 {[%emt 0:00:09]} 7. exd4 {[%emt 0:00:06]} Nh5 {[%emt 0:01:31]} 8. Bg3 {[%emt 0:00:30]} Nxg3 {[%emt 0:00:30]} 9. hxg3 {[%emt 0:00:30]} Bd6 {[%emt 0:00:26]} 10. Bd3 {[%emt 0:01:24]} h6 {[%emt 0:00:32]} 11. Qe2 {[%emt 0:00:12]} Bd7 {[%emt 0:01:02]} 12. g4 {[%emt 0:00:29]} Qe7 {[%emt 0:04:54]} 13. g5 {[%emt 0:00:19]} h5 {[%emt 0:00:30]} 14. g6 {[%emt 0:00:30]} f6 {[%emt 0:00:00]} 15. O-O-O {[%emt 0:01:17]} O-O-O {[%emt 0:01:52]} 16. Bb5 {[%emt 0:00:30]} Kb8 {[%emt 0:03:30]} 17. Rde1 {[%emt 0:00:41]} Rh6 {[%emt 0:00:30]} 18. Nh4 {[%emt 0:05:29]} Rc8 {[%emt 0:01:57]} 19. Kb1 {[%emt 0:00:32]} e5 {[%emt 0:06:21]} 20. Bxc6 {[%emt 0:00:30]} Rxc6 {[%emt 0:00:35]} 21. Nf1 {[%emt 0:04:23]} Qe8 {[%emt 0:20:03]} 22. f4 {[%emt 0:08:10]} e4 {[%emt 0:02:09]} 23. f5 {[%emt 0:00:28]} Rb6 {[%emt 0:01:21]} 24. Ne3 {[%emt 0:13:04]} Qg8 {[%emt 0:21:07]} 25. g4 {[%emt 0:00:59]} Ba3 {[%emt 0:15:51]} 26. b3 {[%emt 0:10:10]} Bb5 {[%emt 0:00:30]} 27. Qd2 {[%emt 0:00:30]} Bd3+ {[%emt 0:00:56]} 28. Ka1 {[%emt 0:00:21]} a5 {[%emt 0:00:49]} 29. Nhg2 {[%emt 0:07:21]} h4 {[%emt 0:02:40]} 30. Nf4 {[%emt 0:00:56]} Ba6 {[%emt 0:05:41]} 31. Nfxd5 {[%emt 0:02:17]} Rd6 {[%emt 0:00:30]} 32. c4 {[%emt 0:01:21]} Qd8 {[%emt 0:04:16]} 33. Qc2 {[%emt 0:01:46]} b5 {[%emt 0:02:41]} 34. Qxe4 {[%emt 0:01:33]} bxc4 {[%emt 0:00:35]} 35. bxc4 {[%emt 0:00:15]} Bb7 {[%emt 0:01:42]} 36. Rb1 {[%emt 0:01:57]} Bb4 {[%emt 0:00:50]} 37. Rb3 {[%emt 0:03:58]} Rh8 {[%emt 0:00:48]} 38. a3 {[%emt 0:04:14]} Re8 {[%emt 0:00:57]} 39. Qd3 {[%emt 0:02:59]} Bxa3 {[%emt 0:00:33]} 40. Rxa3 {[%emt 0:00:00]} Bxd5 41. Nxd5 {[%emt 0:00:41]} Ka7 {[%emt 0:05:59]} 42. Qd2 {[%emt 0:01:41]} Re4 {[%emt 0:02:09]} 43. Rxa5+ {[%emt 0:00:14]} Kb7 {[%emt 0:00:25]} 44. Rb1+ {[%emt 0:00:11]} Kc6 {[%emt 0:00:34]} 45. Qb4 {[%emt 0:02:28]} Rxd4 {[%emt 0:01:01]} 46. Qb7# {[%emt 0:00:50]} 1-0

[Event "EYCC Open-U10 2019"]
[Site "Bratislava"]
[Date "2019.08.10"]
[Round "9.1"]
[White "Vetokhin, Savva"]
[Black "Azadaliyev, Jahandar"]
[Result "1/2-1/2"]
[ECO "B33"]
[WhiteElo "1954"]
[BlackElo "1905"]
[Annotator "NA"]
[PlyCount "70"]
[EventDate "2019.08.02"]
[EventType "swiss"]
[EventCountry "SVK"]
[SourceTitle "playchess.com"]
[Source "ChessBase"]
[SourceQuality "1"]
[TimeControl "40/5400+30:1800+30"]

1. e4 c5 2. Nf3 Nc6 3. d4 cxd4 4. Nxd4 Nf6 5. Nc3 e5 6. Ndb5 d6 7. Bg5 a6 8. Na3 b5 9. Nd5 Be7 10. Bxf6 Bxf6 11. c3 Bg5 12. Nc2 O-O 13. a4 bxa4 14. Rxa4 a5 15. Bc4 Rb8 16. b3 Kh8 17. O-O f5 18. exf5 Bxf5 19. b4 axb4 20. Ncxb4 Nxb4 21. cxb4 Bd7 22. Ra6 Qc8 23. Rxd6 Qxc4 24. Rxd7 Rfd8 25. Ne3 Qxb4 26. Rxd8+ Rxd8 27. Qf3 Rf8 28. Qg4 Qf4 29. g3 Qf6 30. Nd5 Qd6 31. Qxg5 Qxd5 32. Re1 Re8 33. Qf5 h6 34. Qe4 Qxe4 35. Rxe4 g5 1/2-1/2

[Event "EYCC Open-U10 2019"]
[Site "Bratislava"]
[Date "2019.08.10"]
[Round "9.2"]
[White "Finek, Vaclav"]
[Black "Golovchenko, Bogdan"]
[Result "1-0"]
[ECO "B22"]
[WhiteElo "2043"]
[BlackElo "1723"]
[Annotator "NA"]
[PlyCount "105"]
[EventDate "2019.08.02"]
[EventType "swiss"]
[EventCountry "SVK"]
[SourceTitle "playchess.com"]
[Source "ChessBase"]
[SourceQuality "1"]
[TimeControl "40/5400+30:1800+30"]

1. e4 c5 2. c3 Nf6 3. e5 Nd5 4. d4 cxd4 5. cxd4 d6 6. Nf3 Nc6 7. Bc4 Nb6 8. Bb5 dxe5 9. Nxe5 Bd7 10. Nxd7 Qxd7 11. O-O Rd8 12. Be3 g6 13. Nc3 Bg7 14. Qf3 O-O 15. Rfd1 Nd5 16. Bg5 Nxc3 17. bxc3 h6 18. Bxc6 bxc6 19. Bf4 g5 20. Be3 f5 21. h3 f4 22. Bc1 Qd5 23. Qxd5+ cxd5 24. Ba3 Kf7 25. Bc5 a6 26. Rab1 Rb8 27. a4 Rfc8 28. a5 e5 29. Rb6 Ra8 30. Rb7+ Kg6 31. Rdb1 e4 32. R1b6+ Kh7 33. Kf1 h5 34. Rd7 e3 35. fxe3 fxe3 36. Ke2 Re8 37. Rbb7 Rg8 38. Kxe3 Rae8+ 39. Kd2 Re4 40. Kd3 g4 41. Rxd5 Rge8 42. Rg5 Re3+ 43. Kc4 Rg8 44. Rxh5+ Kg6 45. hxg4 Rg3 46. Rb6+ Kf7 47. Rf5+ Ke8 48. Rb8+ Kd7 49. Rxg8 Rxg4 50. Kd5 Rg5 51. Rxg5 Bf6 52. Rh5 Be7 53. Rh7 1-0

[Event "EYCC Open-U10 2019"]
[Site "Bratislava"]
[Date "2019.08.10"]
[Round "9.3"]
[White "Zverev, Lev"]
[Black "Giang, Tran Nam"]
[Result "1/2-1/2"]
[ECO "B40"]
[WhiteElo "1849"]
[BlackElo "1931"]
[Annotator "NA"]
[PlyCount "74"]
[EventDate "2019.08.02"]
[EventType "swiss"]
[EventCountry "SVK"]
[SourceTitle "playchess.com"]
[Source "ChessBase"]
[SourceQuality "1"]
[TimeControl "40/5400+30:1800+30"]

1. e4 {[%emt 0:00:00]} c5 {[%emt 0:00:00]} 2. Nf3 {[%emt 0:00:00]} e6 {[%emt 0:00:00]} 3. d4 {[%emt 0:00:00]} cxd4 {[%emt 0:00:01]} 4. Nxd4 {[%emt 0:00:00]} Qb6 {[%emt 0:00:13]} 5. Nb3 {[%emt 0:07:34]} Nc6 {[%emt 0:00:23]} 6. Be3 {[%emt 0:00:30]} Qc7 {[%emt 0:02:31]} 7. Bd3 {[%emt 0:00:14]} Nf6 {[%emt 0:02:04]} 8. O-O {[%emt 0:00:12]} Be7 {[%emt 0:02:27]} 9. Nc3 {[%emt 0:00:19]} a6 {[%emt 0:01:04]} 10. f4 {[%emt 0:02:55]} d6 {[%emt 0:02:18]} 11. Qe2 {[%emt 0:01:40]} b5 {[%emt 0:01:54]} 12. Rae1 {[%emt 0:03:04]} O-O {[%emt 0:02:31]} 13. Bd2 {[%emt 0:00:14]} Bb7 {[%emt 0:05:37]} 14. e5 {[%emt 0:02:21]} Nd7 {[%emt 0:00:28]} 15. exd6 {[%emt 0:00:42]} Bxd6 {[%emt 0:00:50]} 16. Ne4 {[%emt 0:00:31]} Be7 {[%emt 0:06:22]} 17. Kh1 {[%emt 0:04:27]} Nf6 {[%emt 0:07:48]} 18. Nxf6+ {[%emt 0:00:44]} Bxf6 {[%emt 0:00:14]} 19. c3 {[%emt 0:00:24]} Rad8 {[%emt 0:04:25]} 20. Nc5 {[%emt 0:00:43]} Ba8 {[%emt 0:05:47]} 21. Ne4 {[%emt 0:00:09]} Bh4 {[%emt 0:07:07]} 22. Rd1 {[%emt 0:00:18]} Na5 {[%emt 0:07:17]} 23. Be1 {[%emt 0:03:20]} Bxe1 {[%emt 0:04:11]} 24. Rdxe1 {[%emt 0:02:15]} Nc4 {[%emt 0:01:43]} 25. b3 {[%emt 0:00:56]} Nd6 {[%emt 0:01:14]} 26. Nf6+ {[%emt 0:02:04]} gxf6 {[%emt 0:02:29]} 27. Bxh7+ {[%emt 0:00:09]} Kxh7 {[%emt 0:00:47]} 28. Qh5+ {[%emt 0:00:12]} Kg7 {[%emt 0:00:22]} 29. Qg4+ {[%emt 0:00:12]} Kh7 {[%emt 0:00:50]} 30. Qh4+ {[%emt 0:08:34]} Kg7 {[%emt 0:00:17]} 31. Qg4+ {[%emt 0:00:12]} Kh7 {[%emt 0:00:18]} 32. Re3 {[%emt 0:03:38]} Nf5 {[%emt 0:00:31]} 33. Rh3+ Nh6 34. Re3 Nf5 35. Rh3+ Nh6 36. Qh5 Bxg2+ 37. Kg1 Ba8 1/2-1/2

[Event "EYCC Open-U10 2019"]
[Site "Bratislava"]
[Date "2019.08.10"]
[Round "9.4"]
[White "Usov, Aleksandr E."]
[Black "Materia, Marco"]
[Result "0-1"]
[ECO "C55"]
[WhiteElo "1809"]
[BlackElo "2243"]
[Annotator "NA"]
[PlyCount "70"]
[EventDate "2019.08.02"]
[EventType "swiss"]
[EventCountry "SVK"]
[SourceTitle "playchess.com"]
[Source "ChessBase"]
[SourceQuality "1"]
[TimeControl "40/5400+30:1800+30"]

1. e4 {[%emt 0:00:48]} e5 {[%emt 0:00:00]} 2. Nf3 {[%emt 0:00:05]} Nc6 {[%emt 0:00:00]} 3. d4 {[%emt 0:00:05]} exd4 {[%emt 0:00:00]} 4. Bc4 {[%emt 0:00:03]} Nf6 {[%emt 0:00:06]} 5. e5 {[%emt 0:00:07]} d5 {[%emt 0:00:11]} 6. Bb5 {[%emt 0:00:04]} Ne4 {[%emt 0:00:13]} 7. Nxd4 {[%emt 0:00:07]} Bc5 {[%emt 0:00:19]} 8. Be3 {[%emt 0:00:07]} O-O {[%emt 0:00:11]} 9. Nxc6 {[%emt 0:00:09]} bxc6 {[%emt 0:00:10]} 10. Bxc5 {[%emt 0:00:07]} Nxc5 {[%emt 0:00:07]} 11. Bxc6 {[%emt 0:00:06]} Rb8 {[%emt 0:00:06]} 12. Qxd5 {[%emt 0:00:07]} Qe7 {[%emt 0:00:24]} 13. O-O {[%emt 0:00:13]} Rxb2 {[%emt 0:00:06]} 14. Na3 {[%emt 0:00:22]} Be6 {[%emt 0:21:59]} 15. Qd4 {[%emt 0:02:01]} Rfb8 {[%emt 0:07:55]} 16. f4 {[%emt 0:22:56]} g6 {[%emt 0:14:09]} 17. Rab1 {[%emt 0:38:23]} Rxb1 {[%emt 0:11:41]} 18. Nxb1 {[%emt 0:06:45]} Bxa2 {[%emt 0:03:53]} 19. Nc3 {[%emt 0:01:05]} Be6 {[%emt 0:09:11]} 20. Ra1 {[%emt 0:01:50]} Rb6 {[%emt 0:06:54]} 21. Bf3 {[%emt 0:02:23]} a6 {[%emt 0:02:49]} 22. Ra5 {[%emt 0:01:13]} Nb7 {[%emt 0:00:52]} 23. Bxb7 {[%emt 0:01:32]} Rxb7 {[%emt 0:00:10]} 24. Rxa6 {[%emt 0:01:08]} Rb2 {[%emt 0:02:23]} 25. g3 {[%emt 0:11:02]} Qf8 {[%emt 0:09:12]} 26. Ne4 {[%emt 0:03:34]} Rxc2 {[%emt 0:01:17]} 27. Nf6+ {[%emt 0:00:44]} Kh8 {[%emt 0:01:29]} 28. Ra5 {[%emt 0:01:06]} Qb8 {[%emt 0:01:07]} 29. Ra1 {[%emt 0:01:00]} Kg7 {[%emt 0:01:23]} 30. Ne4 {[%emt 0:03:34]} Qb3 {[%emt 0:03:21]} 31. Nd2 {[%emt 0:01:57]} Qb7 {[%emt 0:02:39]} 32. Rd1 {[%emt 0:00:44]} Bh3 {[%emt 0:00:51]} 33. Qe4 {[%emt 0:00:31]} Qb6+ {[%emt 0:00:14]} 34. Kh1 {[%emt 0:00:08]} Qf2 {[%emt 0:00:07]} 35. Qd5 {[%emt 0:00:51]} Qe2 {[%emt 0:00:31]} 0-1